bitfinex-derivatives/quotes_SOLF0:USTF0_20250312
["timestamp","ask_amount","ask_price","bid_price","bid_amount"]
[1741807487282,0.05098792,124.61,124.59,8.08191898]
[1741807487480,0.05098792,124.61,124.6,8.0271]
[1741807487682,4.50611063,124.61,124.6,8.0271]
[1741807488084,4.50611063,124.61,124.59,0.05421898]
[1741807488285,0.05098792,124.61,124.59,0.05421898]
[1741807489086,8.07758792,124.61,124.59,0.05421898]
[1741807489287,4.4552484,124.6,124.59,0.05421898]
[1741807491387,4.4552484,124.6,124.59,8.08191898]
[1741807491888,8.07748792,124.61,124.59,0.05421898]
[1741807492089,4.45616933,124.6,124.59,0.05421898]
[1741807493589,4.45616933,124.6,124.59,8.08191898]
[1741807493789,4.46026629,124.6,124.59,0.05421898]
[1741807494287,4.46026629,124.6,124.59,8.08191898]
[1741807495184,4.46026629,124.6,124.59,0.05421898]
[1741807495791,4.46026629,124.6,124.59,8.08191898]
[1741807496190,4.46026629,124.6,124.59,0.05421898]
[1741807497089,12.48736629,124.6,124.59,0.05421898]
[1741807497294,4.46026629,124.6,124.53,56.36539227]
[1741807497593,4.46026629,124.59,124.53,35.5049]
[1741807497889,8.0296,124.57,124.53,35.5049]
[1741807498082,4.46026629,124.56,124.53,35.5049]
[1741807498282,2.8638,124.6,124.53,43.5362]
[1741807498484,0.06120082,124.56,124.53,43.58979958]
[1741807499080,0.06120082,124.56,124.53,11.00979958]
[1741807499286,4.45241516,124.55,124.53,0.05359958]
[1741807499482,4.45241516,124.54,124.53,0.05359958]
[1741807499792,12.48331516,124.54,124.53,0.05359958]
[1741807500288,4.45241516,124.54,124.53,0.05359958]
[1741807500493,4.45024353,124.54,124.53,0.05359958]
[1741807500983,12.48114353,124.54,124.53,0.05359958]
[1741807501391,4.45024353,124.54,124.53,0.05359958]
[1741807501690,0.06120082,124.56,124.53,0.05359958]
[1741807501897,4.45095005,124.55,124.53,0.05359958]
[1741807502185,0.06120082,124.56,124.53,53.49409185]
[1741807502389,4.45199812,124.55,124.53,53.49409185]
[1741807502585,0.06120082,124.56,124.53,53.49409185]
[1741807502790,0.06120082,124.56,124.55,8.0303]
[1741807502994,4.51177457,124.56,124.53,32.63359958]
[1741807503185,0.06120082,124.56,124.53,32.63359958]
[1741807503490,0.06120082,124.56,124.55,8.0303]
[1741807504485,8.2e-07,124.56,124.55,8.0303]
[1741807504695,25.7567225,124.6,124.59,8.0277]
[1741807506790,25.7567225,124.6,124.58,8.08173269]
[1741807507191,25.7567225,124.6,124.58,0.05363269]
[1741807507486,0.05725193,124.61,124.58,0.05363269]
[1741807507994,8.0276,124.6,124.58,0.05363269]
[1741807508297,0.05725193,124.61,124.58,0.05363269]
[1741807508488,8.0271,124.6,124.58,0.05363269]
[1741807508695,0.05725193,124.61,124.58,0.05363269]
[1741807508996,53.4977442,124.61,124.53,273.42]
[1741807509197,5.859,124.6,124.52,20.86049227]
[1741807509396,5.859,124.6,124.54,8.0305]
[1741807509589,8.8011,124.6,124.54,8.0305]
[1741807509789,8.8011,124.6,124.52,20.86049227]
[1741807510104,20.86049227,124.59,124.51,35.6728]
[1741807510395,8.0297,124.56,124.55,0.05320017]
[1741807510594,20.91621175,124.57,124.51,40.6125]
[1741807510801,20.91621175,124.57,124.51,32.58]
[1741807510992,8.0307,124.55,124.52,8.0321]
[1741807511491,0.05571948,124.57,124.53,8.0316]
[1741807511697,32.58,124.58,124.52,0.05717771]
[1741807511897,0.05229725,124.56,124.52,0.05717771]
[1741807512098,0.05229725,124.56,124.53,8.0315]
[1741807512486,0.05229725,124.56,124.52,0.05717771]
[1741807513099,0.05229725,124.56,124.53,8.0312]
[1741807513394,0.05229725,124.56,124.52,0.05717771]
[1741807513593,0.05229725,124.56,124.55,8.0303]
[1741807513898,9.725e-05,124.56,124.55,8.0303]
[1741807516297,266.82494695,124.7,124.59,8.0276]
[1741807516503,93.30478952,124.66,124.6,20.86049227]
[1741807516796,4.38759772,124.64,124.6,53.44049227]
[1741807516995,87.37478952,124.66,124.62,28.88619227]
[1741807517198,87.37478952,124.66,124.64,20.86049227]
[1741807517392,87.37478952,124.66,124.64,28.88499227]
[1741807517601,87.42581903,124.66,124.64,28.88499227]
[1741807517802,87.42581903,124.66,124.64,20.86049227]
[1741807518004,87.42581903,124.66,124.65,8.0239]
[1741807518204,87.42581903,124.66,124.64,20.86049227]
[1741807518399,87.42581903,124.66,124.63,32.63988023]
[1741807518600,0.05102951,124.66,124.63,32.63988023]
[1741807518907,0.05102951,124.66,124.65,20.86049227]
[1741807519304,0.05102951,124.66,124.65,28.88439227]
[1741807519704,0.05102951,124.66,124.65,20.86049227]
[1741807520003,0.05102951,124.66,124.65,28.88439227]
[1741807521105,0.05102951,124.66,124.65,20.86049227]
[1741807523100,0.05102951,124.66,124.63,32.63988023]
[1741807523410,8.0245,124.64,124.63,0.05988023]
[1741807524306,8.0262,124.62,124.58,28.88839227]
[1741807524503,8.0262,124.62,124.59,32.56]
[1741807525005,3.0191,124.65,124.59,32.56]
[1741807525206,7.40828124,124.64,124.59,32.56]
[1741807525513,0.05100119,124.63,124.6,0.05327468]
[1741807525815,4.36369291,124.62,124.55,32.56]
[1741807526005,25.22418518,124.62,124.55,32.56]
[1741807526200,25.22418518,124.62,124.55,8.0299]
[1741807526201,8.0278,124.59,124.55,8.0299]
[1741807526404,20.86049227,124.6,124.53,32.56]
[1741807526612,4.36333948,124.59,124.54,20.86049227]
[1741807526804,8.0273,124.6,124.54,20.86049227]
[1741807527001,0.0525924,124.58,124.55,0.05744012]
[1741807528402,0.0525924,124.58,124.56,8.0296]
[1741807528810,0.0525924,124.58,124.55,0.05744012]
[1741807529111,0.0525924,124.58,124.56,32.56]
[1741807530012,0.0525924,124.58,124.55,0.05744012]
[1741807531212,0.0525924,124.58,124.55,8.08734012]
[1741807531406,0.0525924,124.58,124.55,0.05744012]
[1741807532312,0.0525924,124.58,124.55,8.08754012]
[1741807532714,36.96942789,124.58,124.55,0.05744012]
[1741807532911,13.3467,124.57,124.55,0.05744012]
[1741807533110,5.3174,124.57,124.55,0.05744012]
[1741807535213,5.3174,124.57,124.55,8.08774012]
[1741807535513,0.0525924,124.58,124.55,0.05744012]
[1741807535818,0.0525924,124.58,124.57,8.029]
[1741807537615,9.24e-05,124.58,124.57,8.029]
[1741807537811,5.2853,124.64,124.56,41.72098454]
[1741807538012,5.2853,124.64,124.59,20.86049227]
[1741807538218,5.2853,124.64,124.58,32.56]
[1741807538520,5.2853,124.64,124.57,53.42049227]
[1741807538714,5.2853,124.64,124.59,20.86049227]
[1741807538916,0.05576274,124.62,124.59,20.92071166]
[1741807539114,0.05576274,124.62,124.6,8.0271]
[1741807539314,0.05576274,124.62,124.59,20.92071166]
[1741807540119,0.05576274,124.62,124.61,8.0264]
[1741807541125,0.05576274,124.62,124.59,20.92071166]
[1741807541619,0.05576274,124.62,124.6,8.0267]
[1741807542118,0.05576274,124.62,124.59,20.92071166]
[1741807542313,0.05576274,124.62,124.59,8.08771939]
[1741807543615,8.08166274,124.62,124.59,8.08771939]
[1741807543818,0.05576274,124.62,124.6,8.0269]
[1741807544519,0.05576274,124.62,124.59,0.06021939]
[1741807545723,0.05576274,124.62,124.6,8.0267]
[1741807545917,0.05576274,124.62,124.59,0.06021939]
[1741807546513,8.08196274,124.62,124.59,0.06021939]
[1741807546724,0.05576274,124.62,124.59,0.06021939]
[1741807546927,0.05576274,124.62,124.59,8.08761939]
[1741807547222,0.05576274,124.62,124.59,0.06021939]
[1741807548226,0.05576274,124.62,124.6,8.0268]
[1741807548524,0.05576274,124.62,124.59,0.06021939]
[1741807548726,0.05576274,124.62,124.6,8.0265]
[1741807548926,0.05576274,124.62,124.59,0.06021939]
[1741807549425,0.05576274,124.62,124.59,8.08741939]
[1741807549631,0.05576274,124.62,124.59,0.06021939]
[1741807549927,8.0283,124.59,124.55,8.03]
[1741807550126,20.86049227,124.62,124.55,8.03]
[1741807550327,4.36501243,124.61,124.53,23.72059227]
[1741807550531,32.56,124.6,124.54,8.0307]
[1741807550830,32.56,124.6,124.51,53.42049227]
[1741807550831,4.36422459,124.59,124.51,53.42049227]
[1741807551031,8.08998865,124.58,124.56,0.05192476]
[1741807551229,0.06128865,124.58,124.56,0.05192476]
[1741807551630,8.0301,124.56,124.52,8.032]
[1741807552321,8.0293,124.57,124.53,8.0312]
[1741807552724,0.05520528,124.56,124.54,0.05075973]
[1741807554438,0.05520528,124.56,124.54,8.08135973]
[1741807554932,0.05520528,124.56,124.54,0.05075973]
[1741807555835,8.0323,124.52,124.45,34.9102]
[1741807556038,8.0323,124.52,124.45,55.77069227]
[1741807556736,40.5919,124.53,124.48,8.0345]
[1741807556931,0.05599594,124.5,124.48,8.0345]
[1741807558242,0.05599594,124.5,124.49,8.0342]
[1741807558540,0.05599594,124.5,124.47,0.05587584]
[1741807558942,0.05599594,124.5,124.47,8.09097584]
[1741807560143,0.05599594,124.5,124.47,0.05587584]
[1741807561745,0.05599594,124.5,124.41,20.86049227]
[1741807561746,53.49648821,124.5,124.41,20.86049227]
[1741807561950,8.0358,124.47,124.43,8.0377]
[1741807562150,2.5969,124.49,124.41,53.44049227]
[1741807562447,8.0351,124.48,124.41,53.44049227]
[1741807562643,2.5969,124.49,124.41,53.44049227]
[1741807562846,2.5969,124.49,124.44,0.0596085]
[1741807563047,0.05724685,124.46,124.44,0.0596085]
[1741807564048,0.05724685,124.46,124.45,8.0367]
[1741807564752,4.685e-05,124.46,124.45,28.89719227]
[1741807565353,4.685e-05,124.46,124.45,8.0367]
[1741807567449,4.685e-05,124.46,124.44,8.0966085]
[1741807568556,4.685e-05,124.46,124.44,0.0596085]
[1741807569153,4.685e-05,124.46,124.37,261.76049227]
[1741807569358,20.86049227,124.45,124.37,53.44049227]
[1741807569555,23.39049227,124.45,124.37,53.44049227]
[1741807569859,32.58,124.44,124.36,32.58]
[1741807570255,8.0381,124.43,124.37,20.86049227]
[1741807570557,0.05345473,124.41,124.39,0.05298695]
[1741807570857,0.05345473,124.41,124.39,8.09328695]
[1741807571349,0.05345473,124.41,124.39,0.05298695]
[1741807572558,0.05345473,124.41,124.39,8.09318695]
[1741807572961,0.05345473,124.41,124.39,0.05298695]
[1741807573460,0.05345473,124.41,124.4,8.04]
[1741807575060,32.58,124.47,124.39,53.51347922]
[1741807575255,5.0701,124.48,124.42,20.86049227]
[1741807575455,32.58,124.5,124.48,8.0347]
[1741807575655,7.4547,124.52,124.48,8.0347]
[1741807576156,0.0579701,124.51,124.49,0.06127191]
[1741807576358,20.91846237,124.51,124.49,0.06127191]
[1741807576661,32.6,124.5,124.44,32.58]
[1741807576855,32.6,124.5,124.45,8.0362]
[1741807577265,8.0346,124.49,124.45,8.0362]
[1741807577555,8.0346,124.49,124.46,0.05841904]
[1741807577757,0.05393698,124.48,124.46,0.05841904]
[1741807578663,8.0355,124.47,124.46,0.05841904]
[1741807579458,0.05393698,124.48,124.46,0.05841904]
[1741807580458,8.08903698,124.48,124.46,0.05841904]
[1741807581963,8.0355,124.47,124.46,0.05841904]
[1741807583469,8.08903698,124.48,124.46,0.05841904]
[1741807583670,0.05393698,124.48,124.46,0.05841904]
[1741807584170,8.0355,124.47,124.46,0.05841904]
[1741807585474,8.08893698,124.48,124.46,0.05841904]
[1741807586971,0.05393698,124.48,124.46,0.05841904]
[1741807587468,0.05393698,124.48,124.47,8.0355]
[1741807587773,241.08,124.53,124.47,32.58]
[1741807587974,241.08,124.53,124.5,8.0331]
[1741807588174,52.09901836,124.54,124.5,8.0331]
[1741807588474,44.06771836,124.54,124.5,8.0331]
[1741807588973,0.05411721,124.53,124.51,0.06163622]
[1741807591973,0.05411721,124.53,124.51,8.09443622]
[1741807592172,0.05411721,124.53,124.51,0.06163622]
[1741807593076,0.05411721,124.53,124.52,8.0322]
[1741807593273,10.93753105,124.57,124.51,0.06163622]
[1741807594177,8.03,124.56,124.52,8.0319]
[1741807594377,0.05562838,124.55,124.51,0.06163622]
[1741807595581,4.36513354,124.58,124.52,20.86049227]
[1741807595781,76.64771836,124.62,124.54,20.86049227]
[1741807595979,4.36480182,124.61,124.54,20.86049227]
[1741807596178,4.36480182,124.6,124.54,20.86049227]
[1741807596372,8.0268,124.61,124.57,8.0286]
[1741807596583,4.36398168,124.6,124.57,8.0286]
[1741807596782,0.05244067,124.6,124.58,0.05632591]
[1741807597671,0.05244067,124.6,124.58,8.08442591]
[1741807598583,0.05244067,124.6,124.58,0.05632591]
[1741807599880,8.07984067,124.6,124.58,0.05632591]
[1741807600483,0.05244067,124.6,124.58,0.05632591]
[1741807602781,8.0277,124.59,124.58,0.05632591]
[1741807602985,20.86049227,124.59,124.53,32.56]
[1741807603486,8.0295,124.57,124.53,40.5914]
[1741807603782,32.56,124.58,124.5,20.86049227]
[1741807603979,32.56,124.58,124.45,206.0735]
[1741807603980,8.0306,124.55,124.48,55.89089227]
[1741807604180,0.05336507,124.56,124.53,0.05092481]
[1741807604380,8.03,124.56,124.48,55.89089227]
[1741807604582,8.084381,124.56,124.53,0.05759097]
[1741807604888,0.0589836,124.56,124.53,0.05759097]
[1741807606286,0.0589836,124.56,124.54,8.0305]
[1741807606790,0.0589836,124.56,124.53,8.08889097]
[1741807607291,8.0888836,124.56,124.53,0.05759097]
[1741807607481,0.0589836,124.56,124.53,0.05759097]
[1741807607886,8.0309,124.54,124.53,0.05759097]
[1741807609888,61.45109227,124.55,124.53,0.05759097]
[1741807610189,32.56,124.55,124.53,0.05759097]
[1741807610892,8.0886836,124.56,124.53,0.05759097]
[1741807611285,0.0589836,124.56,124.53,0.05759097]
[1741807611691,32.56,124.55,124.53,0.05759097]
[1741807613298,8.0309,124.54,124.53,0.05759097]
[1741807613499,32.56,124.55,124.53,0.05759097]
[1741807613799,32.56,124.55,124.53,8.08889097]
[1741807614002,32.56,124.55,124.53,0.05759097]
[1741807614994,32.56,124.55,124.53,8.08879097]
[1741807615195,32.56,124.55,124.53,0.05759097]
[1741807615396,0.0589836,124.56,124.55,8.0303]
[1741807615598,0.0589836,124.56,124.53,0.05759097]
[1741807616201,0.0589836,124.56,124.55,8.0303]
[1741807617593,53.42049227,124.61,124.58,8.0281]
[1741807618003,53.42049227,124.61,124.54,2.6132]
[1741807618199,61.44749227,124.61,124.57,8.0287]
[1741807618698,0.05880056,124.6,124.58,0.05138717]
[1741807618899,8.0277,124.59,124.58,0.05138717]
[1741807619198,0.05880056,124.6,124.58,0.05138717]
[1741807619901,8.08640056,124.6,124.58,0.05138717]
[1741807620201,0.05880056,124.6,124.58,0.05138717]
[1741807621298,0.05880056,124.6,124.58,8.07958717]
[1741807621501,0.05880056,124.6,124.58,0.05138717]
[1741807622305,0.05880056,124.6,124.59,8.0277]
[1741807623103,10.93753105,124.64,124.59,32.54]
[1741807623307,10.93753105,124.64,124.62,8.0252]
[1741807623614,10.93753105,124.64,124.59,32.54]
[1741807623808,20.86049227,124.65,124.59,32.54]
[1741807624411,0.06005141,124.63,124.61,0.05216849]
[1741807625509,0.06005141,124.63,124.61,8.07826849]
[1741807627214,0.06005141,124.63,124.61,0.05216849]
[1741807627811,8.0258,124.62,124.61,0.05216849]
[1741807628412,8.08545141,124.63,124.61,0.05216849]
[1741807628612,0.06005141,124.63,124.61,0.05216849]
[1741807628916,10.93753105,124.67,124.62,74.26098454]
[1741807629112,33.13018731,124.68,124.65,20.86049227]
[1741807629113,20.19479391,124.68,124.65,20.86049227]
[1741807629312,11.0620819,124.7,124.66,32.54]
[1741807629615,11.0620819,124.7,124.66,40.5629]
[1741807629806,11.0620819,124.7,124.66,32.54]
[1741807630008,0.05179758,124.69,124.67,0.05197106]
[1741807630408,0.05179758,124.69,124.68,8.0219]
[1741807632320,4.8955,124.76,124.72,8.0193]
[1741807632918,4.8955,124.76,124.7,32.52]
[1741807633519,0.0609597,124.74,124.72,0.06040259]
[1741807636123,0.0609597,124.74,124.73,8.0187]
[1741807636323,0.0609597,124.74,124.73,40.5387]
[1741807638524,0.0609597,124.74,124.73,32.52]
[1741807638923,0.0609597,124.74,124.72,0.06040259]
[1741807640320,0.0609597,124.74,124.72,8.07970259]
[1741807641826,0.0609597,124.74,124.72,0.06040259]
[1741807643923,7.5819597,124.74,124.72,0.06040259]
[1741807644123,8.0187,124.73,124.72,0.06040259]
[1741807644423,28.44245197,124.74,124.65,53.36049227]
[1741807644623,8.0213,124.69,124.65,61.38389227]
[1741807645021,53.36049227,124.72,124.65,53.36049227]
[1741807645225,53.36049227,124.72,124.67,8.0226]
[1741807645226,8.0203,124.71,124.67,8.0226]
[1741807645527,0.05389876,124.7,124.67,8.07951816]
[1741807646223,0.05389876,124.7,124.67,0.05691816]
[1741807646625,0.05389876,124.7,124.67,20.91741043]
[1741807646923,0.05389876,124.7,124.68,8.0216]
[1741807650425,0.05389876,124.7,124.67,8.07921816]
[1741807650629,0.05389876,124.7,124.67,0.05691816]
[1741807651323,20.91439103,124.7,124.67,0.05691816]
[1741807651525,8.0219,124.68,124.67,0.05691816]
[1741807651728,0.05389876,124.7,124.67,0.05691816]
[1741807652223,8.0216,124.69,124.67,0.05691816]
[1741807652825,32.48,124.69,124.58,240.58]
[1741807653025,32.48,124.69,124.6,53.34049227]
[1741807653329,8.0222,124.68,124.64,8.024]
[1741807654230,0.05266283,124.67,124.65,0.05192162]
[1741807655827,8.07526283,124.67,124.65,0.05192162]
[1741807656133,0.05266283,124.67,124.65,0.05192162]
[1741807657131,8.0232,124.66,124.65,0.05192162]
[1741807657326,8.0232,124.66,124.59,32.5]
[1741807657327,53.36049227,124.66,124.59,32.5]
[1741807657633,53.36049227,124.66,124.61,8.0261]
[1741807658029,8.0242,124.65,124.58,298.86069227]
[1741807658226,53.36049227,124.66,124.58,266.36069227]
[1741807658546,0.05259227,124.63,124.6,0.05999103]
[1741807658732,0.05259227,124.63,124.6,8.08669103]
[1741807659330,8.07809227,124.63,124.6,8.08669103]
[1741807659539,0.05259227,124.63,124.6,0.05999103]
[1741807659836,8.0261,124.62,124.6,0.05999103]
[1741807660237,0.05259227,124.63,124.6,0.05999103]
[1741807660436,8.0259,124.62,124.6,0.05999103]
[1741807660635,0.05259227,124.63,124.6,0.05999103]
[1741807662239,0.05259227,124.63,124.6,8.08659103]
[1741807662534,0.05259227,124.63,124.6,20.9204833]
[1741807664438,2.4384,124.68,124.62,20.86049227]
[1741807664630,2.4384,124.68,124.62,53.36049227]
[1741807665334,2.4384,124.68,124.64,8.024]
[1741807665335,10.4606,124.68,124.64,8.024]
[1741807665538,0.05505218,124.66,124.64,8.07878715]
[1741807665939,0.05505218,124.66,124.64,0.05478715]
[1741807667343,0.05505218,124.66,124.65,8.0239]
[1741807667543,0.05505218,124.66,124.64,0.05478715]
[1741807667738,0.05505218,124.66,124.64,8.07898715]
[1741807667943,0.05505218,124.66,124.64,0.05478715]
[1741807668343,0.05505218,124.66,124.65,8.0239]
[1741807670943,0.05505218,124.66,124.64,0.05478715]
[1741807671534,0.05505218,124.66,124.64,8.07888715]
[1741807671740,0.05505218,124.66,124.64,0.05478715]
[1741807672241,0.05505218,124.66,124.65,8.0239]
[1741807673144,2.5377,124.72,124.65,32.48]
[1741807673540,8.0201,124.71,124.65,32.48]
[1741807673741,2.5377,124.72,124.67,8.0222]
[1741807674041,8.0203,124.71,124.67,8.0222]
[1741807674241,0.05770192,124.71,124.68,0.05258388]
[1741807675651,8.07780192,124.71,124.68,8.07428388]
[1741807675844,0.05770192,124.71,124.68,0.05258388]
[1741807676447,8.0207,124.7,124.68,0.05258388]
[1741807677547,8.0213,124.69,124.68,0.05258388]
[1741807677949,0.05770192,124.71,124.68,0.05258388]
[1741807678249,8.0209,124.7,124.68,0.05258388]
[1741807678451,0.05770192,124.71,124.68,0.05258388]
[1741807678650,4.40990718,124.71,124.68,0.05258388]
[1741807679147,12.43020718,124.71,124.68,8.07418388]
[1741807679348,8.07800192,124.71,124.68,8.07418388]
[1741807680352,0.05770192,124.71,124.68,0.05258388]
[1741807680853,0.05770192,124.71,124.69,8.0213]
[1741807681351,8.07780192,124.71,124.68,8.07418388]
[1741807681747,0.05770192,124.71,124.68,0.05258388]
[1741807682252,0.05770192,124.71,124.69,8.021]
[1741807684247,0.05770192,124.71,124.68,0.05258388]
[1741807684449,0.05770192,124.71,124.69,32.48]
[1741807684952,0.05770192,124.71,124.7,8.0206]
[1741807685353,1.92e-06,124.71,124.7,28.88109227]
[1741807685854,1.92e-06,124.71,124.68,20.91307615]
[1741807686053,1.92e-06,124.71,124.69,8.0209]
[1741807686244,1.92e-06,124.71,124.68,0.05258388]
[1741807686644,1.92e-06,124.71,124.69,8.0209]
[1741807687052,1.92e-06,124.71,124.69,32.46]
[1741807687355,1.92e-06,124.71,124.7,20.86049227]
[1741807687753,32.98668594,124.79,124.7,28.88049227]
[1741807687954,4.36235803,124.78,124.72,20.86049227]
[1741807688151,32.98668594,124.79,124.76,8.0167]
[1741807688550,32.98668594,124.79,124.74,20.86049227]
[1741807688751,32.98668594,124.79,124.77,8.0157]
[1741807688954,0.06148723,124.78,124.77,8.0157]
[1741807689457,32.98668594,124.79,124.76,53.32049227]
[1741807689653,32.98668594,124.79,124.78,8.0155]
[1741807689855,32.98668594,124.79,124.76,55.92619227]
[1741807690156,4.9519,124.83,124.76,63.94279227]
[1741807690357,4.35145794,124.82,124.76,63.94279227]
[1741807690551,4.35145794,124.82,124.76,32.46]
[1741807690855,0.0518386,124.8,124.78,0.05544129]
[1741807691156,4.40241876,124.8,124.78,0.05544129]
[1741807691553,25.26291103,124.8,124.7,26.09269227]
[1741807691751,20.86049227,124.78,124.68,53.32049227]
[1741807691951,8.0188,124.73,124.69,8.0212]
[1741807692451,20.86049227,124.76,124.68,53.32049227]
[1741807692452,37.3812,124.77,124.72,8.0193]
[1741807692647,0.0563164,124.76,124.7,20.86049227]
[1741807692848,0.0563164,124.76,124.73,0.05667387]
[1741807693057,0.0563164,124.76,124.73,8.07537387]
[1741807693458,0.0563164,124.76,124.73,0.05667387]
[1741807696152,0.0563164,124.76,124.73,8.07537387]
[1741807696359,0.0563164,124.76,124.73,0.05667387]
[1741807696963,8.0179,124.75,124.73,0.05667387]
[1741807697258,32.4963164,124.76,124.73,0.05667387]
[1741807698472,40.5133164,124.76,124.73,0.05667387]
[1741807698972,32.4963164,124.76,124.73,0.05667387]
[1741807700772,40.5133164,124.76,124.73,0.05667387]
[1741807700972,32.4963164,124.76,124.73,0.05667387]
[1741807701172,35.0463164,124.76,124.73,0.05667387]
[1741807702070,8.0174,124.75,124.73,0.05667387]
[1741807702271,35.0463164,124.76,124.73,0.05667387]
[1741807703172,35.0463164,124.76,124.68,53.30049227]
[1741807703173,55.90680867,124.76,124.68,53.30049227]
[1741807703377,55.90680867,124.76,124.68,20.86049227]
[1741807703378,55.85049227,124.76,124.68,20.86049227]
[1741807703674,43.0068,124.76,124.72,8.0188]
[1741807704068,43.0068,124.76,124.68,53.30049227]
[1741807704473,0.05746315,124.73,124.71,0.05764001]
[1741807704672,0.05746315,124.73,124.72,8.0194]
[1741807707374,0.00202186,124.73,124.72,28.87989227]
[1741807707679,10.5782,124.8,124.77,8.0161]
[1741807708177,10.5782,124.8,124.74,32.44]
[1741807708178,2.5637,124.8,124.78,8.0151]
[1741807708475,46.79580909,124.81,124.74,53.30049227]
[1741807708677,0.0600285,124.8,124.79,8.0149]
[1741807710379,2.85e-05,124.8,124.79,8.0149]
[1741807712776,2.85e-05,124.8,124.78,8.06612782]
[1741807712982,44.16980909,124.83,124.78,20.91142009]
[1741807713181,44.16980909,124.83,124.8,20.86049227]
[1741807713479,44.16980909,124.85,124.8,53.30049227]
[1741807714080,0.05143962,124.84,124.81,0.05564074]
[1741807714775,8.06313962,124.84,124.81,0.05564074]
[1741807714978,0.05143962,124.84,124.81,0.05564074]
[1741807715480,0.05143962,124.84,124.82,8.0126]
[1741807716675,0.05143962,124.84,124.82,8.0124]
[1741807716978,0.05143962,124.84,124.81,0.05564074]
[1741807717880,0.05143962,124.84,124.83,8.0123]
[1741807718585,0.05143962,124.84,124.82,8.0125]
[1741807718779,0.05143962,124.84,124.81,0.05564074]
[1741807719179,0.05143962,124.84,124.81,8.06874074]
[1741807719386,0.05143962,124.84,124.81,0.05564074]
[1741807720480,0.05143962,124.84,124.83,8.0123]
[1741807722081,24.58711401,124.84,124.83,8.0123]
[1741807723884,24.58711401,124.84,124.81,0.05564074]
[1741807724985,8.0129,124.82,124.81,0.05564074]
[1741807725487,8.0123,124.83,124.81,0.05564074]
[1741807725692,35.62956628,124.84,124.81,0.05564074]
[1741807726792,8.0128,124.83,124.81,0.05564074]
[1741807726987,35.62956628,124.84,124.81,0.05564074]
[1741807728189,44.16980909,124.83,124.81,0.05564074]
[1741807728489,44.16980909,124.83,124.81,8.06894074]
[1741807728888,44.16980909,124.83,124.81,0.05564074]
[1741807730391,44.16980909,124.83,124.81,8.06914074]
[1741807730594,44.16980909,124.83,124.81,0.05564074]
[1741807730891,88.39105781,124.84,124.81,0.05564074]
[1741807730892,44.22124871,124.84,124.81,0.05564074]
[1741807731284,44.22124871,124.84,124.81,8.06884074]
[1741807731489,44.22124871,124.84,124.81,0.05564074]
[1741807731490,52.23294871,124.84,124.81,0.05564074]
[1741807732582,44.22124871,124.84,124.81,0.05564074]
[1741807732982,35.23408885,124.83,124.81,0.05564074]
[1741807733684,35.23408885,124.83,124.82,8.0129]
[1741807735691,44.22124871,124.84,124.81,0.05564074]
[1741807736692,44.22124871,124.84,124.82,8.0126]
[1741807736992,44.22124871,124.84,124.81,0.05564074]
[1741807737396,44.22124871,124.84,124.82,8.0125]
[1741807738794,44.22124871,124.84,124.81,8.06894074]
[1741807738996,11.04245227,124.83,124.81,0.05564074]
[1741807739398,19.05485227,124.83,124.81,0.05564074]
[1741807739799,11.04245227,124.83,124.81,0.05564074]
[1741807740191,4.36033624,124.82,124.76,20.86049227]
[1741807740499,53.26049227,124.81,124.73,53.26049227]
[1741807740793,4.36033624,124.8,124.72,32.4]
[1741807741189,4.36033624,124.8,124.74,8.0177]
[1741807741190,8.0159,124.78,124.74,8.0177]
[1741807741389,0.05698444,124.77,124.75,0.0575467]
[1741807741701,27.81528735,124.77,124.69,240.36]
[1741807741896,8.0183,124.74,124.7,8.0203]
[1741807742201,8.0183,124.74,124.64,4.8188]
[1741807742202,25.21735484,124.73,124.65,20.86049227]
[1741807742497,4.35686257,124.72,124.67,8.0224]
[1741807742701,4.35686257,124.72,124.68,0.05408473]
[1741807742702,0.05099091,124.7,124.68,0.05408473]
[1741807742899,0.05099091,124.7,124.64,32.4]
[1741807743393,12.98219091,124.7,124.66,8.0231]
[1741807743598,12.98219091,124.7,124.64,32.4]
[1741807743796,4.96119091,124.7,124.62,88.877558]
[1741807743990,4.9102,124.7,124.65,8.0234]
[1741807744196,0.05966479,124.69,124.65,0.05145387]
[1741807745701,32.4,124.68,124.65,0.05145387]
[1741807747602,32.4,124.68,124.66,8.0228]
[1741807747910,0.05966479,124.69,124.66,8.0228]
[1741807749207,0.05966479,124.69,124.65,0.05145387]
[1741807750003,0.05966479,124.69,124.67,8.0222]
[1741807750607,0.05966479,124.69,124.68,8.0219]
[1741807750906,0.05966479,124.69,124.65,0.05145387]